fUSD/lending_fUSD_20240423
["ID","MTS","AMOUNT","RATE_DAILY","PERIOD"]
[323239127,1713830635458,234.14,0.00010067,2]
[323239128,1713830925008,800.0,0.00022,30]
[323239134,1713831031934,-482.99531256,0.00011882,2]
[323239135,1713831031968,-138.61535099,0.00011882,2]
[323239136,1713831031977,-541.23162901,0.00011883,2]
[323239137,1713831031989,-299.09837099,0.00011883,2]
[323239138,1713831031998,-164.21,0.00011883,2]
[323239139,1713831032007,-233.56,0.00011883,2]
[323239140,1713831032016,-3865.13280793,0.00011894,2]
[323239141,1713831032044,-1487.26719207,0.00011894,2]
[323239142,1713831032054,-160.0,0.00011918,2]
[323239143,1713831032063,-159.39,0.00011973,2]
[323239144,1713831032073,-1750.0,0.00012,2]
[323239145,1713831032083,-739.25,0.00012051,2]
[323239146,1713831032094,-150.0,0.00012091,2]
[323239147,1713831032104,-840.0,0.00012164,2]
[323239148,1713831032113,-234.14,0.00012331,2]
[323239149,1713831032122,-172.59,0.00012472,2]
[323239150,1713831032132,-130.24710241,0.00012869,2]
[323239151,1713831032160,-35.5230595,0.00012869,2]
[323239152,1713831032170,-626.15971124,0.0001287,2]
[323239153,1713831032182,-257.69726089,0.0001287,2]
[323239154,1713831032198,-299.99,0.0001287,2]
[323239183,1713831037797,-564.98491787,0.0001287,2]
[323239184,1713831037807,-7500.0,0.00012886,2]
[323239185,1713831037817,-1000.0,0.00012896,2]
[323239186,1713831037828,-500.0,0.00012896,2]
[323239187,1713831037837,-827.14764989,0.00012898,2]
[323239188,1713831037854,-625.80856535,0.00012898,2]
[323239189,1713831037865,-428.0192,0.00012898,2]
[323239190,1713831037915,-353.55961219,0.00012898,2]
[323239191,1713831037964,-1582.72027257,0.00012898,2]
[323239192,1713831037974,-130535.8551,0.00012898,2]
[323239193,1713831037984,-18092.0094,0.00012898,2]
[323239194,1713831037993,-501.45847598,0.00012899,2]
[323239195,1713831038004,-501.45847591,0.00012899,2]
[323239196,1713831038014,-501.45847591,0.00012899,2]
[323239197,1713831038023,-501.45847591,0.00012899,2]
[323239198,1713831038032,-501.45847591,0.00012899,2]
[323239199,1713831038042,-501.45847591,0.00012899,2]
[323239200,1713831038051,-501.45847591,0.000129,2]
[323239201,1713831038061,-501.45847591,0.000129,2]
[323239202,1713831038071,-501.45847591,0.000129,2]
[323239204,1713831038080,-501.45847591,0.000129,2]
[323239206,1713831038092,-501.45847591,0.000129,2]
[323239208,1713831038101,-545.8088,0.000129,2]
[323239210,1713831038111,-10000.0,0.000129,2]
[323239212,1713831038120,-501.45847591,0.000129,2]
[323239214,1713831038130,-500.0,0.00012986,2]
[323239216,1713831038139,-148050.0,0.00012986,2]
[323239218,1713831038149,-2848.94980332,0.00012996,2]
[323239220,1713831038158,-664.0,0.00012999,2]
[323239222,1713831038170,-8666.28491885,0.00012999,2]
[323239224,1713831038182,-6691.69759607,0.00012999,2]
[323239226,1713831038231,-31935.764536,0.00012999,2]
[323239318,1713831039908,-33437.5,0.00012999,2]
[323239319,1713831040070,-3284.54187124,0.00012999,2]
[323239320,1713831040084,-2424.84669876,0.00012999,2]
[323239321,1713831040130,-265938.47778419,0.00012999,2]
[323239327,1713831042861,-2898.67779042,0.00012999,2]
[323239328,1713831042974,-2576.68562746,0.00012999,2]
[323239329,1713831042986,-1340.55576,0.00012999,2]
[323239334,1713831046172,-194.32946599,0.00012997,2]
[323239335,1713831046181,-621.61066355,0.00012998,2]
[323239336,1713831046191,-34862.00004008,0.00012999,2]
[323239337,1713831046214,-335.27295591,0.00012999,2]
[323239344,1713831166408,272.52,0.00010521,2]
[323239346,1713831204771,155.0,0.00010521,2]
[323239347,1713831220755,155.0,0.00010521,2]
[323239348,1713831242754,155.0,0.00010521,2]
[323239350,1713831262763,155.66818329,0.00010521,2]
[323239351,1713831646437,289.78,9.554e-05,2]
[323239353,1713832058016,350.0,0.000112,2]
[323239360,1713832231969,-835.76808,0.00011224,2]
[323239361,1713832231980,-948.30238245,0.00011224,2]
[323239362,1713832231989,-621.61066355,0.00011225,2]
[323239363,1713832231998,-172.59,0.00011228,2]
[323239364,1713832232007,-188.4176,0.00011386,2]
[323239365,1713832232017,-1283.838096,0.00011403,2]
[323239366,1713832232026,-165.55,0.00011461,2]
[323239367,1713832232036,-161.34813829,0.00011487,2]
[323239368,1713832232048,-376.23604222,0.00011487,2]
[323239369,1713832232058,-237.34745753,0.00011493,2]
[323239370,1713832232069,-650.61254247,0.00011493,2]
[323239371,1713832232079,-150.0,0.00011496,2]
[323239372,1713832232089,-161.98617853,0.0001161,2]
[323239373,1713832232099,-165.55,0.0001166,2]
[323239374,1713832232108,-289.78,0.00011818,2]
[323239375,1713832232118,-165.55,0.00011859,2]
[323239376,1713832232127,-162.37,0.00011908,2]
[323239377,1713832232137,-162.37,0.00011915,2]
[323239378,1713832232146,-162.37,0.00011921,2]
[323239379,1713832232155,-162.37,0.00011928,2]
[323239380,1713832232165,-162.37,0.00011934,2]
[323239381,1713832232174,-162.37,0.00011941,2]
[323239382,1713832232183,-378.16,0.00011941,2]
[323239383,1713832232193,-162.37,0.00011948,2]
[323239384,1713832232202,-162.37,0.00011954,2]
[323239385,1713832232211,-162.37,0.00011961,2]
[323239389,1713832232485,-58.831279,0.00011967,2]
[323239390,1713832232539,-103.538721,0.00011967,2]
[323239391,1713832232548,-1750.0,0.00012,2]
[323239392,1713832232557,-165.55,0.00012058,2]
[323239393,1713832232567,-173.81845248,0.00012072,2]
[323239394,1713832232579,-698.18154752,0.00012072,2]
[323239395,1713832232588,-167.33,0.00012399,2]
[323239396,1713832232598,-162.41,0.00012776,2]
[323239397,1713832232608,-2067.288,0.0001278,2]
[323239398,1713832232617,-6545.1193,0.0001278,2]
[323239399,1713832232627,-1000.0,0.0001278,2]
[323239400,1713832232638,-7500.0,0.0001278,2]
[323239401,1713832232652,-958.78609238,0.0001278,2]
[323239402,1713832232662,-532.4494,0.000128,2]
[323239403,1713832232673,-162.41,0.0001284,2]
[323239404,1713832232683,-1373.58896971,0.00012875,2]
[323239405,1713832232693,-500.0,0.00012879,2]
[323239406,1713832232703,-500.0,0.00012879,2]
[323239407,1713832232712,-500.0,0.00012879,2]
[323239408,1713832232723,-500.0,0.00012879,2]
[323239409,1713832232732,-500.0,0.00012879,2]
[323239410,1713832232741,-260762.09047332,0.0001288,2]
[323239411,1713832232753,-1133.8,0.0001288,2]
[323239412,1713832232773,-11631.87808505,0.0001288,2]
[323239413,1713832232804,-3024.03354732,0.0001288,2]
[323239414,1713832232815,-2069.40934711,0.0001288,2]
[323239417,1713832237951,-2120.53998156,0.0001288,2]
[323239418,1713832238068,-712.29463692,0.0001288,2]
[323239419,1713832238082,-580.79166872,0.0001288,2]
[323239420,1713832238117,-1121.23242206,0.0001288,2]
[323239421,1713832238230,-1692.81875343,0.0001288,2]
[323239422,1713832238241,-6687.130922,0.0001288,2]
[323239423,1713832240028,-604.57016637,0.00012617,2]
[323239424,1713832240040,-250.13277065,0.00012617,2]
[323239425,1713832240090,-145.29706298,0.00012617,2]
[323239426,1713832240100,-940.71222974,0.0001288,2]
[323239427,1713832240112,-1677.17808672,0.0001288,2]
[323239428,1713832240124,-386.32879425,0.0001288,2]
[323239429,1713832240135,-801.9367831,0.0001288,2]
[323239430,1713832240148,-20872.22612287,0.0001288,2]
[323239431,1713832240159,-6137.17059908,0.0001288,2]
[323239432,1713832240261,-32012.5833153,0.0001288,2]
[323239433,1713832240273,-4677.57268814,0.0001288,2]
[323239434,1713832240324,-4076.71947898,0.0001288,2]
[323239435,1713832240336,-1766.78117,0.0001288,2]
[323239460,1713832243206,-478.70000222,0.0001288,2]
[323239461,1713832243365,-19493.63176424,0.0001288,2]
[323239462,1713832243424,-463931.62276663,0.0001288,2]
[323239463,1713832243434,-500.0,0.00012895,2]
[323239464,1713832243443,-1000.0,0.00012896,2]
[323239465,1713832243457,-500.0,0.00012896,2]
[323239466,1713832243466,-10000.0,0.000129,2]
[323239467,1713832243476,-774.2683574,0.000129,2]
[323239468,1713832243485,-774.26835739,0.000129,2]
[323239469,1713832243495,-774.26835739,0.000129,2]
[323239470,1713832243505,-774.26835739,0.000129,2]
[323239471,1713832243514,-2113.78720433,0.00012984,2]
[323239472,1713832243524,-1465.33796797,0.00012985,2]
[323239473,1713832246765,-580.84,0.00012985,2]
[323239477,1713832270720,292.56,0.00010877,2]
[323239479,1713832781264,277.93,9.965e-05,2]
[323239480,1713833327393,264.03,9.767e-05,2]
[323239492,1713833432315,-442.78159814,0.0001153,2]
[323239493,1713833432479,-716.59388063,0.0001153,2]
[323239494,1713833432493,-3.41821011,0.0001153,2]
[323239495,1713833432502,-305.29430304,0.00011531,2]
[323239496,1713833432512,-621.61066355,0.00011531,2]
[323239497,1713833432522,-155.0,0.00011532,2]
[323239498,1713833432532,-200.0,0.00011559,2]
[323239499,1713833432542,-200.0,0.00011559,2]
[323239500,1713833432551,-1164.15,0.00011648,2]
[323239501,1713833432561,-7.6071368,0.00011705,2]
[323239604,1713833440201,-7549.46922081,0.00011705,2]
[323239605,1713833440258,-1393.57123636,0.00011705,2]
[323239606,1713833440271,-352.22991336,0.00011705,2]
[323239607,1713833440285,-479.77594894,0.00011705,2]
[323239608,1713833440299,-2536.10208,0.00011705,2]
[323239609,1713833440326,-2959.64473179,0.00011705,2]
[323239610,1713833440534,-809.28699692,0.00011705,2]
[323239631,1713833443538,-500.0,0.00011705,2]
[323239632,1713833443696,-890.79545521,0.00011705,2]
[323239636,1713833446828,-417.11,0.00011705,2]
[323239637,1713833446935,-387.66344222,0.00011705,2]
[323239639,1713833447051,-618.29999976,0.00011705,2]
[323239641,1713833473395,2200.0,0.000224,30]
[323239643,1713833795664,600.0,0.00025999,90]
[323239644,1713833819477,284.54,9.596e-05,2]
[323239645,1713833981260,2222.0,0.000224,30]
[323239646,1713834028581,-621.61066355,0.00011392,2]
[323239647,1713834028601,-1793.19,0.00011393,2]
[323239648,1713834028622,-187.01,0.00011405,2]
[323239649,1713834028642,-150.0,0.00011439,2]
[323239650,1713834028663,-1632.83,0.00011462,2]
[323239651,1713834028683,-841.73259696,0.00011567,2]
[323239652,1713834028703,-7991.32,0.0001157,2]
[323239653,1713834028724,-200.0,0.00011576,2]
[323239654,1713834028749,-2581.5972,0.00011602,2]
[323239655,1713834028770,-166.58,0.00011657,2]
[323239656,1713834028790,-213.91943303,0.00011697,2]
[323239657,1713834028812,-1707.06711,0.00011705,2]
[323239658,1713834028837,-190.4,0.00011707,2]
[323239659,1713834028859,-156.99,0.00011745,2]
[323239660,1713834028880,-800.0,0.00011756,2]
[323239661,1713834028901,-284.54,0.0001186,2]
[323239662,1713834028922,-156.99,0.00011898,2]
[323239663,1713834028945,-190.4,0.00011972,2]
[323239664,1713834028965,-1750.0,0.00012,2]
[323239665,1713834028995,-156.99,0.00012051,2]
[323239666,1713834029017,-156.99,0.00012204,2]
[323239667,1713834029038,-156.99,0.00012357,2]
[323239668,1713834029060,-53097.7106,0.00012888,2]
[323239669,1713834029081,-1527.2761,0.00012891,2]
[323239670,1713834029102,-7500.0,0.00012891,2]
[323239671,1713834029123,-1000.0,0.00012895,2]
[323239672,1713834029145,-500.0,0.00012895,2]
[323239673,1713834029166,-100000.0,0.00012899,2]
[323239674,1713834029187,-10000.0,0.000129,2]
[323239675,1713834029207,-387.13417869,0.000129,2]
[323239676,1713834029231,-387.13417869,0.000129,2]
[323239677,1713834029252,-387.13417869,0.000129,2]
[323239678,1713834029273,-387.13417869,0.000129,2]
[323239679,1713834029293,-387.13417869,0.000129,2]
[323239680,1713834029314,-387.13417869,0.000129,2]
[323239681,1713834029334,-387.13417869,0.000129,2]
[323239682,1713834029357,-4263.1224314,0.00012978,2]
[323239683,1713834029378,-1562.50161371,0.00012984,2]
[323239684,1713834029399,-2534.29728888,0.00012985,2]
[323239685,1713834029419,-193.4663148,0.00012988,2]
[323239686,1713834029439,-1619.6914377,0.00012988,2]
[323239687,1713834029458,-235.9687292,0.00012988,2]
[323239688,1713834029480,-43498.938977,0.00012988,2]
[323239689,1713834029500,-193.4663148,0.00012991,2]
[323239690,1713834029520,-193.4663148,0.00012991,2]
[323239691,1713834029543,-193.4663148,0.00012991,2]
[323239692,1713834029565,-193.4663148,0.00012991,2]
[323239693,1713834029587,-1361.3978903,0.00012991,2]
[323239694,1713834029608,-1103.1043429,0.00012991,2]
[323239695,1713834029628,-844.8107956,0.00012991,2]
[323239696,1713834029648,-235.9687292,0.00012991,2]
[323239697,1713834029669,-235.9687292,0.00012991,2]
[323239698,1713834029689,-235.9687292,0.00012991,2]
[323239699,1713834029710,-36562.1268203,0.00012991,2]
[323239700,1713834029731,-29625.3146635,0.00012991,2]
[323239701,1713834029751,-22688.5025067,0.00012991,2]
[323239702,1713834029772,-155.0,0.00012997,2]
[323239703,1713834029793,-410.32117245,0.00012997,2]
[323239704,1713834029814,-408.17868454,0.00012997,2]
[323239705,1713834029834,-683.74835302,0.00012997,2]
[323239706,1713834029855,-236.59678776,0.00012997,2]
[323239707,1713834029875,-2358.50142136,0.00012997,2]
[323239708,1713834029896,-363.11662395,0.00012997,2]
[323239709,1713834029917,-467.07549417,0.00012997,2]
[323239710,1713834029940,-1243.72563098,0.00012997,2]
[323239711,1713834029961,-1758.5206706,0.00012997,2]
[323239712,1713834029985,-167.20569175,0.00012997,2]
[323239713,1713834030005,-304.30621889,0.00012997,2]
[323239714,1713834030026,-155.2040644,0.00012997,2]
[323239715,1713834030046,-327.63343049,0.00012998,2]
[323239716,1713834030068,-205.09669917,0.00012998,2]
[323239717,1713834030383,-4240.36606207,0.00012998,2]
[323239718,1713834030423,-55756.01357831,0.00012998,2]
[323239719,1713834030442,-594.0,0.00012999,2]
[323239720,1713834030462,-831426.51276382,0.00012999,2]
[323239721,1713834030483,-4443.75999078,0.00012999,2]
[323239722,1713834030501,-343.85766626,0.00012999,2]
[323239723,1713834030519,-647.97418161,0.00012999,2]
[323239724,1713834030540,-2003453.59810046,0.00013,2]
[323239725,1713834288262,256.08,0.00010654,2]
[323239739,1713834632546,-621.61066355,0.00012047,2]
[323239741,1713834632556,-150.0,0.00012048,2]
[323239742,1713834632566,-1088.22,0.00012335,2]
[323239743,1713834632575,-840.0,0.00012636,2]
[323239744,1713834632584,-7500.0,0.00012891,2]
[323239745,1713834632594,-209.946,0.00012899,2]
[323239746,1713834632603,-380.3,0.00012899,2]
[323239747,1713834632612,-299.99,0.00012899,2]
[323239748,1713834632621,-2655.36354949,0.000129,2]
[323239749,1713834632630,-2655.36354949,0.000129,2]
[323239750,1713834632639,-10000.0,0.000129,2]
[323239751,1713834632648,-2655.36354949,0.000129,2]
[323239752,1713834632657,-193.56708937,0.000129,2]
[323239753,1713834632667,-193.56708936,0.000129,2]
[323239754,1713834632676,-256.08,0.00012918,2]
[323239755,1713834632685,-7741.7446336,0.0001299,2]
[323239756,1713834632694,-193.46631525,0.0001299,2]
[323239757,1713834632704,-471.9374586,0.0001299,2]
[323239758,1713834632713,-609.8272992,0.0001299,2]
[323239759,1713834632722,-6282.8180164,0.00012991,2]
[323239760,1713834632731,-4823.8913991,0.00012991,2]
[323239761,1713834632741,-3364.9647819,0.00012991,2]
[323239762,1713834632750,-205.09669917,0.00012999,2]
[323239763,1713834632761,-206645.64538822,0.00012999,2]
[323239764,1713834632777,-1344.7842,0.00012999,2]
[323239765,1713834632790,-7528.32781236,0.00012999,2]
[323239766,1713834632802,-712.8,0.00012999,2]
[323239767,1713834632821,-673.20372,0.00012999,2]
[323239768,1713834632833,-1592.358,0.00012999,2]
[323239769,1713834632852,-3237.2,0.00012999,2]
[323239770,1713834632865,-1723.49402903,0.00012999,2]
[323239771,1713834632893,-3189.83507936,0.00012999,2]
[323239772,1713834632904,-299.02767933,0.00012999,2]
[323239773,1713834632916,-387.1825779,0.00012999,2]
[323239774,1713834632936,-306.01595469,0.00012999,2]
[323239775,1713834632948,-1457.68,0.00012999,2]
[323239778,1713834638404,-1413.72,0.00012999,2]
[323239779,1713834638441,-32241.6189343,0.00012999,2]
[323239843,1713834640404,-1313.31,0.00012999,2]
[323239845,1713834640582,-33635.97827059,0.00012999,2]
[323239846,1713834640679,-7800.0,0.00012999,2]
[323239847,1713834641371,-1.373e-05,0.00012999,2]
[323239848,1713834641414,-419.89769935,0.00012999,2]
[323239849,1713834641425,-2466.25865283,0.00012999,2]
[323239851,1713834643879,-836.60016149,0.00012899,2]
[323239863,1713834646748,-599.37483851,0.00012899,2]
[323239864,1713834646758,-621.61066355,0.00012998,2]
[323239865,1713834646768,-5514.69917383,0.00012999,2]
[323239868,1713834805958,230.47,0.00010115,2]
[323239870,1713835100125,1404.2519398,0.0001,14]
[323239875,1713835234228,750.0036595,0.0001,7]
[323239876,1713835307345,218.94,0.00010026,2]
[323239882,1713835797622,207.99,9.97e-05,2]
[323239885,1713835831566,-621.61066355,0.00011687,2]
[323239886,1713835831577,-444.46701666,0.00011687,2]
[323239887,1713835831586,-150.0,0.00011688,2]
[323239888,1713835831595,-89.94276463,0.00011688,2]
[323239889,1713835831817,-60.05723537,0.00011688,2]
[323239890,1713835831826,-150.0,0.00011688,2]
[323239891,1713835831836,-328.0,0.00011904,2]
[323239892,1713835831846,-240.0,0.00011937,2]
[323239893,1713835831855,-150.90673212,0.00011937,2]
[323239894,1713835831867,-521.09326788,0.00011937,2]
[323239895,1713835831877,-680.72562987,0.00012,2]
[323239896,1713835831896,-1069.27437013,0.00012,2]
[323239897,1713835831906,-40000.0,0.00012088,2]
[323239898,1713835831916,-150.0,0.00012121,2]
[323239899,1713835831926,-207.99,0.00012234,2]
[323239900,1713835831935,-1095.86,0.0001228,2]
[323239902,1713835831945,-163.44,0.00012399,2]
[323239904,1713835831954,-150.0,0.00012553,2]
[323239905,1713835831963,-246.26,0.00012641,2]
[323239906,1713835831973,-669.65,0.00012641,2]
[323239907,1713835831982,-910.03,0.00012741,2]
[323239908,1713835831991,-413.42,0.00012741,2]
[323239909,1713835832001,-910.03,0.00012741,2]
[323239910,1713835832010,-413.42,0.00012741,2]
[323239911,1713835832019,-413.42,0.00012741,2]
[323239912,1713835832035,-910.03,0.00012741,2]
[323239914,1713835832043,-910.03,0.00012741,2]
[323239917,1713835832052,-413.42,0.00012741,2]
[323239919,1713835832061,-1064.1066,0.00012799,2]
[323239922,1713835832070,-531.75213971,0.000128,2]
[323239924,1713835832079,-15030.53038949,0.00012889,2]
[323239926,1713835832091,-1000.0,0.00012896,2]
[323239927,1713835832101,-500.0,0.00012896,2]
[323239928,1713835832111,-3952.5184,0.00012899,2]
[323239929,1713835832122,-44449.577,0.00012899,2]
[323239930,1713835832132,-335.7407,0.00012899,2]
[323239931,1713835832143,-31615.779,0.00012899,2]
[323239932,1713835832152,-78701.8396,0.00012899,2]
[323239933,1713835832161,-3358.9298,0.00012899,2]
[323239934,1713835832171,-7500.0,0.00012899,2]
[323239935,1713835832180,-2124.29083959,0.000129,2]
[323239936,1713835832189,-2124.29083959,0.000129,2]
[323239937,1713835832199,-2124.29083959,0.000129,2]
[323239938,1713835832208,-1329.60441182,0.000129,2]
[323239939,1713835832221,-469.17,0.000129,2]
[323239940,1713835832293,-325.51642777,0.000129,2]
[323239941,1713835832302,-1087.64800423,0.000129,2]
[323239948,1713835837690,-321.05367639,0.000129,2]
[323239949,1713835837701,-715.58915897,0.000129,2]
[323239950,1713835837711,-89.41089103,0.000129,2]
[323239951,1713835837856,-2034.87994856,0.000129,2]
[323239952,1713835837866,-10000.0,0.000129,2]
[323239953,1713835837875,-2124.29083959,0.000129,2]
[323239954,1713835837886,-163.83891218,0.00012984,2]
[323239955,1713835837896,-150.0,0.00012986,2]
[323239956,1713835837906,-150.0,0.00012986,2]
[323239957,1713835837916,-326.8263489,0.00012988,2]
[323239958,1713835837926,-304.9136496,0.00012988,2]
[323239959,1713835837935,-392.19161896,0.00012988,2]
[323239960,1713835837945,-326.8263489,0.00012991,2]
[323239961,1713835837956,-326.8263489,0.00012991,2]
[323239962,1713835837965,-326.8263489,0.00012991,2]
[323239964,1713835837975,-183.01240642,0.00012997,2]
[323239966,1713835837984,-236.60894022,0.00012997,2]
[323239968,1713835837993,-237.65643912,0.00012997,2]
[323239969,1713835838003,-155.10734754,0.00012998,2]
[323239970,1713835838013,-227.21716817,0.00012998,2]
[323239971,1713835838023,-1243.90816564,0.00012998,2]
[323239972,1713835838034,-41210.40713492,0.00012999,2]
[323239973,1713835838046,-1684.22786993,0.00012999,2]
[323239983,1713835839665,-745.0,0.00012999,2]
[323239984,1713835839696,-371.52799978,0.00012999,2]
[323239985,1713835841975,-3613.65319423,0.00012999,2]
[323240001,1713835843096,-515.8973005,0.00012999,2]
[323240010,1713835846628,-1228.0,0.00012986,2]
[323240011,1713835846637,-1059.369,0.00012986,2]
[323240012,1713835846647,-445.3630167,0.00012998,2]
[323240013,1713835846656,-161134.80848917,0.00012999,2]
[323240014,1713835846667,-16730.45181081,0.00012999,2]
[323240015,1713835846739,-11120.2528,0.00012999,2]
[323240016,1713835869504,654.83173556,9.97e-05,2]
[323240017,1713836390017,235.63,9.988e-05,2]
[323240021,1713836626529,5330.0,0.00022,31]
[323240026,1713836864089,223.84,9.786e-05,2]
[323240045,1713837031849,-621.61068572,0.000116,2]
[323240046,1713837031860,-526.93689436,0.00011601,2]
[323240047,1713837031872,-379.03771596,0.00011602,2]
[323240048,1713837031885,-472.41470396,0.00011602,2]
[323240049,1713837031900,-353.09574945,0.00011602,2]
[323240050,1713837031914,-416.59216371,0.00011602,2]
[323240051,1713837031925,-52.57783629,0.00011602,2]
[323240052,1713837031957,-3994.47293492,0.00011602,2]
[323240053,1713837031973,-7978.076391,0.00011602,2]
[323240054,1713837031988,-585.66873517,0.00011602,2]
[323240055,1713837031999,-1572.27,0.00011606,2]
[323240056,1713837032010,-150.0,0.00011649,2]
[323240057,1713837032021,-150.0,0.00011649,2]
[323240058,1713837032032,-3832.66126483,0.0001165,2]
[323240059,1713837032052,-1501.8336298,0.0001165,2]
[323240060,1713837032066,-1403.8,0.0001165,2]
[323240061,1713837032079,-1623.1694,0.0001165,2]
[323240062,1713837032098,-4521.93570537,0.0001165,2]
[323240063,1713837032108,-1114.7978914,0.00011693,2]
[323240064,1713837032120,-750.14486278,0.00011697,2]
[323240065,1713837032131,-250.0,0.00011778,2]
[323240066,1713837032142,-262.4,0.00011829,2]
[323240067,1713837032154,-150.0,0.00011918,2]
[323240068,1713837032165,-737.6,0.00011918,2]
[323240069,1713837032176,-596.97,0.00011936,2]
[323240070,1713837032186,-223.84,0.0001205,2]
[323240071,1713837032198,-7718.59,0.00012087,2]
[323240073,1713837032209,-605.31736547,0.00012087,2]
[323240077,1713837032241,-1249.78847264,0.00012087,2]
[323240079,1713837032254,-6926.85416189,0.00012087,2]
[323240082,1713837032265,-8286.15239779,0.00012087,2]
[323240083,1713837032278,-11356.5808455,0.00012087,2]
[323240084,1713837032292,-5677.58675671,0.00012087,2]
[323240085,1713837032303,-4750.13861667,0.00012087,2]
[323240086,1713837032348,-2154.97138333,0.00012087,2]
[323240087,1713837032360,-374.5557158,0.00012347,2]
[323240088,1713837032371,-499.99,0.00012347,2]
[323240089,1713837032383,-910.21,0.00012441,2]
[323240090,1713837032394,-910.21,0.00012441,2]
[323240091,1713837032405,-417.76387205,0.00012441,2]
[323240102,1713837037774,-492.44612795,0.00012441,2]
[323240103,1713837037783,-1082.13603859,0.00012441,2]
[323240104,1713837037795,-466.50396141,0.00012441,2]
[323240105,1713837037805,-522.01,0.00012578,2]
[323240106,1713837037814,-150.0,0.00012578,2]
[323240107,1713837037824,-350.43,0.00012578,2]
[323240108,1713837037833,-150.0,0.00012578,2]
[323240109,1713837037842,-107.94501246,0.00012578,2]
[323240110,1713837037853,-414.06498754,0.00012578,2]
[323240111,1713837037862,-350.43,0.00012578,2]
[323240112,1713837037871,-522.01,0.00012578,2]
[323240113,1713837037880,-150.0,0.00012578,2]
[323240114,1713837037889,-101.66622305,0.00012578,2]
[323240115,1713837037902,-248.76377695,0.00012578,2]
[323240116,1713837037911,-522.01,0.00012578,2]
[323240117,1713837037920,-350.43,0.00012578,2]
[323240118,1713837037930,-522.01,0.00012578,2]
[323240119,1713837037939,-350.43,0.00012578,2]
[323240120,1713837037949,-150.0,0.00012578,2]
[323240121,1713837037959,-522.01,0.00012578,2]
[323240122,1713837037969,-350.43,0.00012578,2]
[323240123,1713837037981,-522.01,0.00012578,2]
[323240124,1713837037996,-350.43,0.00012578,2]
[323240125,1713837038006,-150.0,0.00012578,2]
[323240126,1713837038016,-1647.0,0.000126,2]
[323240127,1713837038027,-150.0,0.000127,2]
[323240128,1713837038037,-423.32,0.000127,2]
[323240129,1713837038047,-522.01,0.000127,2]
[323240130,1713837038057,-305.82,0.000127,2]
[323240131,1713837038067,-301.55,0.000127,2]
[323240132,1713837038077,-150.0,0.000127,2]
[323240133,1713837038086,-150.73,0.000127,2]
[323240134,1713837038096,-300.7,0.000127,2]
[323240135,1713837038106,-350.43,0.000127,2]
[323240137,1713837038115,-910.21,0.000127,2]
[323240139,1713837038124,-150.0,0.000127,2]
[323240141,1713837038135,-350.43,0.000127,2]
[323240142,1713837038145,-522.01,0.000127,2]
[323240144,1713837038154,-910.21,0.000127,2]
[323240146,1713837038163,-22438.8140314,0.00012767,2]
[323240148,1713837038172,-7500.0,0.00012798,2]
[323240151,1713837038182,-2729.90775052,0.00012798,2]
[323240157,1713837038235,-322.13559348,0.00012798,2]
[323240160,1713837038253,-1778.432456,0.00012798,2]
[323240162,1713837038262,-150.99,0.000128,2]
[323240165,1713837038272,-1216.06010353,0.00012888,2]
[323240169,1713837038283,-362.15015935,0.00012888,2]
[323240172,1713837038292,-983.90761629,0.00012889,2]
[323240174,1713837038301,-1000.0,0.00012896,2]
[323240176,1713837038310,-704.3,0.00012896,2]
[323240177,1713837038319,-1546.84,0.00012896,2]
[323240180,1713837038329,-1398.95,0.00012896,2]
[323240182,1713837038338,-500.0,0.00012896,2]
[323240184,1713837038347,-500.0,0.00012896,2]
[323240186,1713837038355,-500.0,0.00012896,2]
[323240188,1713837038364,-2625.8418,0.00012897,2]